[Event "Titled Tuesday Blitz August 1 Early 2023"]
[White "Lizak, Peter"]
[Black "Dishman, Stephen"]
[WhiteFideId "731595"]
[BlackFideId "403024"]
[WhiteElo "2614"]
[BlackElo "2402"]
[Result "1-0"]
[Round "4"]
[TimeControl "180+1"]
[Date "2023.08.01"]
[WhiteClock "0:00:31"]
[BlackClock "0:00:00"]
[Board "149"]

1. d4 {[%clk 0:02:51]}  d5 {[%clk 0:02:59]} 2. Nf3 {[%clk 0:02:51]}  Nf6 {[%clk 0:02:59]} 3. c4 {[%clk 0:02:52]}  c6 {[%clk 0:02:58]} 4. e3 {[%clk 0:02:51]}  Bf5 {[%clk 0:02:57]} 5. Nc3 {[%clk 0:02:50]}  e6 {[%clk 0:02:57]} 6. Qb3 {[%clk 0:02:48]}  Qb6 {[%clk 0:02:55]} 7. Qxb6 {[%clk 0:02:42]}  axb6 {[%clk 0:02:55]} 8. Nh4 {[%clk 0:02:42]}  Bc2 {[%clk 0:02:45]} 9. Kd2 {[%clk 0:02:40]}  Bg6 {[%clk 0:02:44]} 10. Nxg6 {[%clk 0:02:41]}  hxg6 {[%clk 0:02:45]} 11. f3 {[%clk 0:02:39]}  Bd6 {[%clk 0:02:34]} 12. h3 {[%clk 0:02:39]}  Nbd7 {[%clk 0:02:33]} 13. Kc2 {[%clk 0:02:38]}  dxc4 {[%clk 0:02:23]} 14. Bxc4 {[%clk 0:02:37]}  e5 {[%clk 0:02:23]} 15. d5 {[%clk 0:02:31]}  b5 {[%clk 0:02:22]} 16. Bb3 {[%clk 0:02:16]}  Nc5 {[%clk 0:02:20]} 17. Rd1 {[%clk 0:02:13]}  Ke7 {[%clk 0:02:19]} 18. e4 {[%clk 0:02:08]}  Nxb3 {[%clk 0:02:06]} 19. Kxb3 {[%clk 0:02:08]}  b4 {[%clk 0:01:57]} 20. Na4 {[%clk 0:02:04]}  b5 {[%clk 0:01:52]} 21. Nb6 {[%clk 0:02:00]}  Ra6 {[%clk 0:01:51]} 22. Be3 {[%clk 0:01:55]}  c5 {[%clk 0:01:49]} 23. Rac1 {[%clk 0:01:53]}  c4+ {[%clk 0:01:36]} 24. Nxc4 {[%clk 0:01:52]}  bxc4+ {[%clk 0:01:36]} 25. Rxc4 {[%clk 0:01:51]}  Rha8 {[%clk 0:01:27]} 26. Bc5 {[%clk 0:01:25]}  Nd7 {[%clk 0:01:11]} 27. Bxb4 {[%clk 0:01:21]}  Bxb4 {[%clk 0:01:06]} 28. Rxb4 {[%clk 0:01:21]}  Rxa2 {[%clk 0:01:04]} 29. Rb7 {[%clk 0:01:19]}  R2a7 {[%clk 0:01:01]} 30. Rxa7 {[%clk 0:01:18]}  Rxa7 {[%clk 0:01:02]} 31. Kc4 {[%clk 0:01:18]}  Kd6 {[%clk 0:01:01]} 32. b4 {[%clk 0:01:18]}  Rb7 {[%clk 0:00:47]} 33. Ra1 {[%clk 0:01:17]}  Nb6+ {[%clk 0:00:46]} 34. Kc3 {[%clk 0:01:13]}  f5 {[%clk 0:00:42]} 35. Ra6 {[%clk 0:01:08]}  Kc7 {[%clk 0:00:33]} 36. b5 {[%clk 0:01:03]}  fxe4 {[%clk 0:00:19]} 37. fxe4 {[%clk 0:01:03]}  g5 {[%clk 0:00:15]} 38. Kb4 {[%clk 0:01:02]}  Nc8 {[%clk 0:00:08]} 39. Kc5 {[%clk 0:00:44]}  Kd7 {[%clk 0:00:06]} 40. b6 {[%clk 0:00:42]}  Nd6 {[%clk 0:00:05]} 41. Ra8 {[%clk 0:00:38]}  Nxe4+ {[%clk 0:00:05]} 42. Kb5 {[%clk 0:00:39]}  Nd6+ {[%clk 0:00:05]} 43. Ka6 {[%clk 0:00:39]}  e4 {[%clk 0:00:03]} 44. Rg8 {[%clk 0:00:37]}  e3 {[%clk 0:00:02]} 45. Rxg7+ {[%clk 0:00:38]}  Kd8 {[%clk 0:00:02]} 46. Rg6 {[%clk 0:00:31]}  e2 {[%clk 0:00:00]} 47. Rxd6+ {[%clk 0:00:31]} 1-0


[Site "https://www.chess.com"]

[Event "Titled Tuesday Blitz August 1 Early 2023"]
[White "Silva Lucena, Cristian"]
[Black "Perdomo, Carlos Andres"]
[WhiteFideId "2232588"]
[BlackFideId "4400852"]
[WhiteElo "2399"]
[BlackElo "2607"]
[Result "1-0"]
[Round "4"]
[TimeControl "180+1"]
[Date "2023.08.01"]
[WhiteClock "0:01:51"]
[BlackClock "0:00:07"]
[Board "150"]

1. e4 {[%clk 0:03:00]}  c5 {[%clk 0:02:59]} 2. Nf3 {[%clk 0:03:01]}  e6 {[%clk 0:02:57]} 3. d4 {[%clk 0:03:01]}  cxd4 {[%clk 0:02:57]} 4. Nxd4 {[%clk 0:03:02]}  Nc6 {[%clk 0:02:57]} 5. Nc3 {[%clk 0:03:03]}  a6 {[%clk 0:02:51]} 6. g3 {[%clk 0:03:03]}  Qc7 {[%clk 0:02:35]} 7. Bg2 {[%clk 0:03:03]}  d6 {[%clk 0:02:33]} 8. O-O {[%clk 0:03:03]}  Bd7 {[%clk 0:02:33]} 9. Re1 {[%clk 0:03:04]}  Nf6 {[%clk 0:02:25]} 10. Nxc6 {[%clk 0:03:04]}  Bxc6 {[%clk 0:02:24]} 11. Nd5 {[%clk 0:03:04]}  Bxd5 {[%clk 0:02:08]} 12. exd5 {[%clk 0:03:03]}  e5 {[%clk 0:02:08]} 13. f4 {[%clk 0:03:04]}  Be7 {[%clk 0:02:07]} 14. fxe5 {[%clk 0:03:03]}  dxe5 {[%clk 0:02:06]} 15. c4 {[%clk 0:02:55]}  O-O {[%clk 0:02:03]} 16. b3 {[%clk 0:02:51]}  Bd6 {[%clk 0:01:37]} 17. Bb2 {[%clk 0:02:50]}  b5 {[%clk 0:01:30]} 18. Rc1 {[%clk 0:02:48]}  bxc4 {[%clk 0:01:28]} 19. Rxc4 {[%clk 0:02:48]}  Qe7 {[%clk 0:00:53]} 20. Qe2 {[%clk 0:02:25]}  Rfe8 {[%clk 0:00:51]} 21. Rc6 {[%clk 0:02:24]}  a5 {[%clk 0:00:41]} 22. Qc4 {[%clk 0:02:16]}  Nd7 {[%clk 0:00:31]} 23. Kh1 {[%clk 0:02:12]}  f6 {[%clk 0:00:28]} 24. Ba3 {[%clk 0:02:00]}  Bxa3 {[%clk 0:00:16]} 25. d6+ {[%clk 0:02:00]}  Qf7 {[%clk 0:00:14]} 26. Bd5 {[%clk 0:02:00]}  Rf8 {[%clk 0:00:07]} 27. Bxf7+ {[%clk 0:02:00]}  Rxf7 {[%clk 0:00:08]} 28. Rc8+ {[%clk 0:02:00]}  Rxc8 {[%clk 0:00:08]} 29. Qxc8+ {[%clk 0:02:01]}  Nf8 {[%clk 0:00:09]} 30. Rd1 {[%clk 0:01:57]}  Rd7 {[%clk 0:00:08]} 31. Qc4+ {[%clk 0:01:53]}  Rf7 {[%clk 0:00:08]} 32. d7 {[%clk 0:01:52]}  Be7 {[%clk 0:00:07]} 33. d8=Q {[%clk 0:01:51]}  Bxd8 {[%clk 0:00:07]} 34. Rxd8 {[%clk 0:01:51]} 1-0


[Site "https://www.chess.com"]

[Event "Titled Tuesday Blitz August 1 Early 2023"]
[White "Ovchinnikov, Vsevolod"]
[Black "Fisabilillah, Ummi"]
[WhiteFideId "24176842"]
[BlackFideId "7104804"]
[WhiteElo "2602"]
[BlackElo "2396"]
[Result "1/2-1/2"]
[Round "4"]
[TimeControl "180+1"]
[Date "2023.08.01"]
[WhiteClock "0:00:10"]
[BlackClock "0:00:18"]
[Board "152"]

1. d4 {[%clk 0:02:58]}  d5 {[%clk 0:02:59]} 2. c4 {[%clk 0:02:58]}  c6 {[%clk 0:03:00]} 3. Nf3 {[%clk 0:02:57]}  Nf6 {[%clk 0:03:00]} 4. g3 {[%clk 0:02:54]}  a6 {[%clk 0:02:58]} 5. Nbd2 {[%clk 0:02:52]}  Bf5 {[%clk 0:02:59]} 6. Bg2 {[%clk 0:02:52]}  e6 {[%clk 0:02:59]} 7. O-O {[%clk 0:02:53]}  Nbd7 {[%clk 0:02:58]} 8. Nh4 {[%clk 0:02:51]}  Bg4 {[%clk 0:02:58]} 9. h3 {[%clk 0:02:48]}  Bh5 {[%clk 0:02:58]} 10. g4 {[%clk 0:02:48]}  Bg6 {[%clk 0:02:34]} 11. Nxg6 {[%clk 0:02:42]}  hxg6 {[%clk 0:02:35]} 12. e3 {[%clk 0:02:42]}  Bb4 {[%clk 0:02:11]} 13. b3 {[%clk 0:02:39]}  Qc7 {[%clk 0:02:10]} 14. a3 {[%clk 0:02:32]}  Bd6 {[%clk 0:01:43]} 15. Re1 {[%clk 0:02:21]}  e5 {[%clk 0:01:28]} 16. e4 {[%clk 0:01:43]}  dxe4 {[%clk 0:01:22]} 17. Nxe4 {[%clk 0:01:43]}  Nxe4 {[%clk 0:01:20]} 18. Rxe4 {[%clk 0:01:44]}  O-O {[%clk 0:01:02]} 19. dxe5 {[%clk 0:01:03]}  Bxe5 {[%clk 0:00:59]} 20. Ra2 {[%clk 0:01:03]}  Nf6 {[%clk 0:00:53]} 21. Ree2 {[%clk 0:00:59]}  Rad8 {[%clk 0:00:53]} 22. Rad2 {[%clk 0:01:00]}  Bf4 {[%clk 0:00:49]} 23. Rxd8 {[%clk 0:00:55]}  Rxd8 {[%clk 0:00:49]} 24. Qc2 {[%clk 0:00:56]}  Bxc1 {[%clk 0:00:41]} 25. Qxc1 {[%clk 0:00:57]}  Qd6 {[%clk 0:00:42]} 26. Re3 {[%clk 0:00:34]}  Nh7 {[%clk 0:00:37]} 27. b4 {[%clk 0:00:29]}  Nf8 {[%clk 0:00:34]} 28. c5 {[%clk 0:00:27]}  Qd7 {[%clk 0:00:35]} 29. Bf1 {[%clk 0:00:20]}  Ne6 {[%clk 0:00:31]} 30. Rf3 {[%clk 0:00:12]}  Qd1 {[%clk 0:00:26]} 31. Qxd1 {[%clk 0:00:11]}  Rxd1 {[%clk 0:00:27]} 32. Kg2 {[%clk 0:00:12]}  Nd4 {[%clk 0:00:19]} 33. Rd3 {[%clk 0:00:11]}  Rxd3 {[%clk 0:00:16]} 34. Bxd3 {[%clk 0:00:12]}  Kf8 {[%clk 0:00:17]} 35. f4 {[%clk 0:00:09]}  Ke7 {[%clk 0:00:17]} 36. Kf2 {[%clk 0:00:10]}  Ne6 {[%clk 0:00:14]} 37. Ke3 {[%clk 0:00:10]}  Nc7 {[%clk 0:00:15]} 38. Ke4 {[%clk 0:00:10]}  Nd5 {[%clk 0:00:15]} 39. g5 {[%clk 0:00:09]}  Nc3+ {[%clk 0:00:15]} 40. Kd4 {[%clk 0:00:09]}  Nd5 {[%clk 0:00:16]} 41. f5 {[%clk 0:00:09]}  gxf5 {[%clk 0:00:13]} 42. Bxf5 {[%clk 0:00:10]}  Kd8 {[%clk 0:00:11]} 43. h4 {[%clk 0:00:10]}  Nc7 {[%clk 0:00:11]} 44. Ke5 {[%clk 0:00:09]}  Nb5 {[%clk 0:00:11]} 45. a4 {[%clk 0:00:10]}  Nc3 {[%clk 0:00:11]} 46. a5 {[%clk 0:00:09]}  Nd5 {[%clk 0:00:11]} 47. h5 {[%clk 0:00:09]}  Ke7 {[%clk 0:00:11]} 48. h6 {[%clk 0:00:09]}  gxh6 {[%clk 0:00:11]} 49. gxh6 {[%clk 0:00:10]}  Kf8 {[%clk 0:00:12]} 50. Bc8 {[%clk 0:00:09]}  Nxb4 {[%clk 0:00:12]} 51. Bxb7 {[%clk 0:00:10]}  Kg8 {[%clk 0:00:11]} 52. Kd4 {[%clk 0:00:09]}  Kh7 {[%clk 0:00:11]} 53. Kc4 {[%clk 0:00:09]}  Nd5 {[%clk 0:00:12]} 54. Bxc6 {[%clk 0:00:09]}  Nc7 {[%clk 0:00:13]} 55. Be4+ {[%clk 0:00:08]}  Kxh6 {[%clk 0:00:13]} 56. c6 {[%clk 0:00:09]}  Kg7 {[%clk 0:00:13]} 57. Kc5 {[%clk 0:00:09]}  Kf8 {[%clk 0:00:14]} 58. Kd6 {[%clk 0:00:10]}  Ne8+ {[%clk 0:00:14]} 59. Ke5 {[%clk 0:00:10]}  Ke7 {[%clk 0:00:14]} 60. Bd3 {[%clk 0:00:10]}  Nc7 {[%clk 0:00:14]} 61. Bc4 {[%clk 0:00:10]}  f6+ {[%clk 0:00:15]} 62. Kf5 {[%clk 0:00:11]}  Kd6 {[%clk 0:00:15]} 63. Kxf6 {[%clk 0:00:11]}  Kxc6 {[%clk 0:00:16]} 64. Ke5 {[%clk 0:00:12]}  Kc5 {[%clk 0:00:17]} 65. Be2 {[%clk 0:00:13]}  Kb4 {[%clk 0:00:17]} 66. Kd6 {[%clk 0:00:13]}  Nb5+ {[%clk 0:00:16]} 67. Kd7 {[%clk 0:00:12]}  Kxa5 {[%clk 0:00:16]} 68. Bf1 {[%clk 0:00:11]}  Kb4 {[%clk 0:00:17]} 69. Kc6 {[%clk 0:00:10]}  a5 {[%clk 0:00:18]} 70. Bxb5 {[%clk 0:00:09]}  a4 {[%clk 0:00:18]} 71. Bxa4 {[%clk 0:00:10]} 1/2-1/2


[Site "https://www.chess.com"]

[Event "Titled Tuesday Blitz August 1 Early 2023"]
[White "brm72"]
[Black "Namitbir Singh Walia"]
[BlackFideId "35071068"]
[WhiteElo "2597"]
[BlackElo "2393"]
[Result "1-0"]
[Round "4"]
[TimeControl "180+1"]
[Date "2023.08.01"]
[WhiteClock "0:00:04"]
[BlackClock "0:00:08"]
[Board "153"]

1. e4 {[%clk 0:03:00]}  c5 {[%clk 0:03:00]} 2. Nf3 {[%clk 0:03:00]}  Nc6 {[%clk 0:03:01]} 3. Bb5 {[%clk 0:03:00]}  e5 {[%clk 0:03:00]} 4. O-O {[%clk 0:02:56]}  Bd6 {[%clk 0:03:01]} 5. d3 {[%clk 0:02:45]}  a6 {[%clk 0:02:57]} 6. Ba4 {[%clk 0:02:30]}  Nf6 {[%clk 0:02:54]} 7. Nbd2 {[%clk 0:02:25]}  b5 {[%clk 0:02:52]} 8. Bb3 {[%clk 0:02:25]}  O-O {[%clk 0:02:53]} 9. a4 {[%clk 0:02:25]}  Bb7 {[%clk 0:02:49]} 10. Re1 {[%clk 0:02:20]}  h6 {[%clk 0:02:49]} 11. Nf1 {[%clk 0:02:19]}  Nd4 {[%clk 0:02:44]} 12. Nxd4 {[%clk 0:02:14]}  cxd4 {[%clk 0:02:43]} 13. Ng3 {[%clk 0:02:14]}  Bb4 {[%clk 0:02:33]} 14. Rf1 {[%clk 0:02:06]}  d5 {[%clk 0:02:30]} 15. exd5 {[%clk 0:01:50]}  Nxd5 {[%clk 0:02:28]} 16. Nf5 {[%clk 0:01:45]}  Ne7 {[%clk 0:01:33]} 17. Ng3 {[%clk 0:01:10]}  Kh8 {[%clk 0:01:28]} 18. Qh5 {[%clk 0:01:09]}  Ng8 {[%clk 0:01:20]} 19. Qxe5 {[%clk 0:01:06]}  Re8 {[%clk 0:01:10]} 20. Qf4 {[%clk 0:01:02]}  Nf6 {[%clk 0:00:47]} 21. Bxf7 {[%clk 0:00:58]}  Rf8 {[%clk 0:00:47]} 22. Bb3 {[%clk 0:00:54]}  Nd5 {[%clk 0:00:44]} 23. Qxd4 {[%clk 0:00:48]}  Ba5 {[%clk 0:00:44]} 24. Nh5 {[%clk 0:00:31]}  Rf7 {[%clk 0:00:36]} 25. Bxh6 {[%clk 0:00:23]}  Bb6 {[%clk 0:00:37]} 26. Bxg7+ {[%clk 0:00:20]}  Kg8 {[%clk 0:00:35]} 27. Qg4 {[%clk 0:00:21]}  Qc8 {[%clk 0:00:19]} 28. Qg6 {[%clk 0:00:19]}  Qf5 {[%clk 0:00:17]} 29. Qh6 {[%clk 0:00:07]}  Qh7 {[%clk 0:00:13]} 30. Bxd5 {[%clk 0:00:05]}  Bxd5 {[%clk 0:00:12]} 31. Nf6+ {[%clk 0:00:05]}  Rxf6 {[%clk 0:00:11]} 32. Qxf6 {[%clk 0:00:06]}  Bc7 {[%clk 0:00:11]} 33. h3 {[%clk 0:00:04]}  Qxg7 {[%clk 0:00:10]} 34. Qxg7+ {[%clk 0:00:04]}  Kxg7 {[%clk 0:00:11]} 35. axb5 {[%clk 0:00:05]}  axb5 {[%clk 0:00:11]} 36. Rxa8 {[%clk 0:00:04]}  Bxa8 {[%clk 0:00:08]} 37. Ra1 {[%clk 0:00:04]} 1-0


[Site "https://www.chess.com"]

[Event "Titled Tuesday Blitz August 1 Early 2023"]
[White "jimmy-schlumpf"]
[Black "Hajiyev, Kanan"]
[BlackFideId "13404148"]
[WhiteElo "2388"]
[BlackElo "2570"]
[Result "1-0"]
[Round "4"]
[TimeControl "180+1"]
[Date "2023.08.01"]
[WhiteClock "0:00:09"]
[BlackClock "0:00:12"]
[Board "155"]

1. d4 {[%clk 0:03:00]}  Nf6 {[%clk 0:02:59]} 2. Nf3 {[%clk 0:03:00]}  e6 {[%clk 0:03:00]} 3. c4 {[%clk 0:02:59]}  b6 {[%clk 0:03:00]} 4. g3 {[%clk 0:02:58]}  Bb7 {[%clk 0:03:01]} 5. Bg2 {[%clk 0:02:58]}  Bb4+ {[%clk 0:03:01]} 6. Bd2 {[%clk 0:02:58]}  Be7 {[%clk 0:03:01]} 7. O-O {[%clk 0:02:58]}  O-O {[%clk 0:03:02]} 8. Nc3 {[%clk 0:02:58]}  Ne4 {[%clk 0:02:56]} 9. Qc2 {[%clk 0:02:56]}  Nxd2 {[%clk 0:02:51]} 10. Qxd2 {[%clk 0:02:54]}  d6 {[%clk 0:02:49]} 11. e4 {[%clk 0:02:52]}  Nd7 {[%clk 0:02:48]} 12. Rad1 {[%clk 0:02:48]}  Qc8 {[%clk 0:02:44]} 13. Rfe1 {[%clk 0:02:43]}  e5 {[%clk 0:02:23]} 14. Bh3 {[%clk 0:02:25]}  exd4 {[%clk 0:02:11]} 15. Nxd4 {[%clk 0:02:22]}  Qd8 {[%clk 0:02:03]} 16. Nd5 {[%clk 0:02:17]}  Ne5 {[%clk 0:01:57]} 17. f4 {[%clk 0:01:53]}  c5 {[%clk 0:00:33]} 18. fxe5 {[%clk 0:01:50]}  cxd4 {[%clk 0:00:33]} 19. e6 {[%clk 0:01:12]}  fxe6 {[%clk 0:00:25]} 20. Bxe6+ {[%clk 0:01:09]}  Kh8 {[%clk 0:00:25]} 21. Qxd4 {[%clk 0:01:07]}  Bxd5 {[%clk 0:00:23]} 22. Qxd5 {[%clk 0:00:49]}  Bf6 {[%clk 0:00:22]} 23. b3 {[%clk 0:00:47]}  Be5 {[%clk 0:00:19]} 24. Kg2 {[%clk 0:00:47]}  Qg5 {[%clk 0:00:19]} 25. Rf1 {[%clk 0:00:44]}  Qe3 {[%clk 0:00:18]} 26. Bg4 {[%clk 0:00:40]}  Qg5 {[%clk 0:00:17]} 27. Be2 {[%clk 0:00:32]}  h5 {[%clk 0:00:16]} 28. Rf5 {[%clk 0:00:31]}  Rxf5 {[%clk 0:00:15]} 29. Qxa8+ {[%clk 0:00:30]}  Kh7 {[%clk 0:00:14]} 30. exf5 {[%clk 0:00:30]}  h4 {[%clk 0:00:13]} 31. Qf3 {[%clk 0:00:28]}  hxg3 {[%clk 0:00:10]} 32. Qh5+ {[%clk 0:00:28]}  Qxh5 {[%clk 0:00:09]} 33. Bxh5 {[%clk 0:00:29]}  gxh2 {[%clk 0:00:10]} 34. Bf3 {[%clk 0:00:28]}  Kh6 {[%clk 0:00:10]} 35. Be4 {[%clk 0:00:27]}  Kg5 {[%clk 0:00:10]} 36. Rf1 {[%clk 0:00:26]}  Kg4 {[%clk 0:00:09]} 37. Rf3 {[%clk 0:00:25]}  a5 {[%clk 0:00:09]} 38. a4 {[%clk 0:00:25]}  Kh4 {[%clk 0:00:08]} 39. Rf2 {[%clk 0:00:22]}  Kg4 {[%clk 0:00:07]} 40. Rf1 {[%clk 0:00:23]}  Kg5 {[%clk 0:00:07]} 41. Rf3 {[%clk 0:00:20]}  Kg4 {[%clk 0:00:08]} 42. Rh3 {[%clk 0:00:18]}  Kf4 {[%clk 0:00:06]} 43. Bb1 {[%clk 0:00:17]}  Kg4 {[%clk 0:00:03]} 44. Rh8 {[%clk 0:00:12]}  Kf4 {[%clk 0:00:02]} 45. Rb8 {[%clk 0:00:11]}  Ke3 {[%clk 0:00:02]} 46. Rxb6 {[%clk 0:00:10]}  Kd2 {[%clk 0:00:02]} 47. Rb5 {[%clk 0:00:09]}  Kc1 {[%clk 0:00:03]} 48. Be4 {[%clk 0:00:08]}  Kb2 {[%clk 0:00:04]} 49. Rxa5 {[%clk 0:00:07]}  Kxb3 {[%clk 0:00:05]} 50. Rb5+ {[%clk 0:00:07]}  Kxc4 {[%clk 0:00:06]} 51. Rb1 {[%clk 0:00:06]}  d5 {[%clk 0:00:07]} 52. Bxd5+ {[%clk 0:00:06]}  Kxd5 {[%clk 0:00:07]} 53. a5 {[%clk 0:00:05]}  Kc5 {[%clk 0:00:06]} 54. a6 {[%clk 0:00:05]}  Kc6 {[%clk 0:00:03]} 55. a7 {[%clk 0:00:05]}  Kd6 {[%clk 0:00:04]} 56. a8=Q {[%clk 0:00:05]}  Ke7 {[%clk 0:00:05]} 57. Qb7+ {[%clk 0:00:05]}  Kf6 {[%clk 0:00:06]} 58. Re1 {[%clk 0:00:05]}  Kxf5 {[%clk 0:00:06]} 59. Rxe5+ {[%clk 0:00:05]}  Kxe5 {[%clk 0:00:06]} 60. Qxg7+ {[%clk 0:00:05]}  Kf5 {[%clk 0:00:07]} 61. Kxh2 {[%clk 0:00:05]}  Kf4 {[%clk 0:00:08]} 62. Qf6+ {[%clk 0:00:05]}  Ke4 {[%clk 0:00:08]} 63. Kg3 {[%clk 0:00:05]}  Ke3 {[%clk 0:00:09]} 64. Qe5+ {[%clk 0:00:05]}  Kd3 {[%clk 0:00:09]} 65. Kf2 {[%clk 0:00:06]}  Kc4 {[%clk 0:00:09]} 66. Qd6 {[%clk 0:00:07]}  Kc3 {[%clk 0:00:09]} 67. Ke3 {[%clk 0:00:07]}  Kc4 {[%clk 0:00:10]} 68. Qc6+ {[%clk 0:00:07]}  Kb4 {[%clk 0:00:10]} 69. Kd3 {[%clk 0:00:08]}  Kb3 {[%clk 0:00:11]} 70. Qb6+ {[%clk 0:00:08]}  Ka4 {[%clk 0:00:11]} 71. Kc4 {[%clk 0:00:08]}  Ka3 {[%clk 0:00:12]} 72. Qb3# {[%clk 0:00:09]} 1-0


[Site "https://www.chess.com"]

[Event "Titled Tuesday Blitz August 1 Early 2023"]
[White "Ahmad, Khagan"]
[Black "Rosenberg, Evan S"]
[WhiteFideId "13431552"]
[BlackFideId "2019299"]
[WhiteElo "2569"]
[BlackElo "2382"]
[Result "0-1"]
[Round "4"]
[TimeControl "180+1"]
[Date "2023.08.01"]
[WhiteClock "0:00:00"]
[BlackClock "0:00:11"]
[Board "158"]

1. e4 {[%clk 0:02:56]}  c5 {[%clk 0:02:59]} 2. Nf3 {[%clk 0:02:53]}  g6 {[%clk 0:02:59]} 3. c3 {[%clk 0:02:47]}  d5 {[%clk 0:02:59]} 4. e5 {[%clk 0:02:46]}  Nc6 {[%clk 0:02:48]} 5. d4 {[%clk 0:02:44]}  Bg4 {[%clk 0:02:46]} 6. Be2 {[%clk 0:02:35]}  Bxf3 {[%clk 0:02:40]} 7. Bxf3 {[%clk 0:02:36]}  e6 {[%clk 0:02:33]} 8. Be3 {[%clk 0:02:12]}  Qb6 {[%clk 0:02:24]} 9. Qb3 {[%clk 0:01:59]}  Qxb3 {[%clk 0:02:22]} 10. axb3 {[%clk 0:02:00]}  cxd4 {[%clk 0:02:23]} 11. cxd4 {[%clk 0:02:00]}  h5 {[%clk 0:02:11]} 12. Nc3 {[%clk 0:01:33]}  a6 {[%clk 0:02:05]} 13. Kd2 {[%clk 0:01:25]}  Nh6 {[%clk 0:02:01]} 14. Rhd1 {[%clk 0:01:10]}  Nf5 {[%clk 0:02:01]} 15. Ke2 {[%clk 0:01:10]}  Rc8 {[%clk 0:01:51]} 16. g3 {[%clk 0:00:51]}  Bh6 {[%clk 0:01:42]} 17. Na4 {[%clk 0:00:41]}  Nxe3 {[%clk 0:01:38]} 18. fxe3 {[%clk 0:00:35]}  Nb4 {[%clk 0:01:32]} 19. Rdc1 {[%clk 0:00:25]}  Ke7 {[%clk 0:01:25]} 20. Kd2 {[%clk 0:00:14]}  Rc6 {[%clk 0:01:16]} 21. Rxc6 {[%clk 0:00:14]}  Nxc6 {[%clk 0:01:16]} 22. Nc5 {[%clk 0:00:15]}  Nxd4 {[%clk 0:01:12]} 23. Bd1 {[%clk 0:00:11]}  Nf5 {[%clk 0:00:51]} 24. Nxb7 {[%clk 0:00:11]}  Nxe3 {[%clk 0:00:51]} 25. Rxa6 {[%clk 0:00:08]}  Nc4+ {[%clk 0:00:31]} 26. Ke2 {[%clk 0:00:08]}  Nxe5 {[%clk 0:00:32]} 27. Ra7 {[%clk 0:00:07]}  Kf6 {[%clk 0:00:29]} 28. Nd6 {[%clk 0:00:07]}  Rd8 {[%clk 0:00:25]} 29. Nb5 {[%clk 0:00:07]}  Rb8 {[%clk 0:00:24]} 30. Nd6 {[%clk 0:00:07]}  Rd8 {[%clk 0:00:20]} 31. Nb5 {[%clk 0:00:07]}  Bf8 {[%clk 0:00:20]} 32. Bc2 {[%clk 0:00:07]}  Bc5 {[%clk 0:00:19]} 33. Rc7 {[%clk 0:00:06]}  Bg1 {[%clk 0:00:19]} 34. h3 {[%clk 0:00:06]}  g5 {[%clk 0:00:18]} 35. Bd1 {[%clk 0:00:06]}  g4 {[%clk 0:00:18]} 36. Kf1 {[%clk 0:00:05]}  Bh2 {[%clk 0:00:15]} 37. Kg2 {[%clk 0:00:06]}  Nf3 {[%clk 0:00:14]} 38. Bxf3 {[%clk 0:00:05]}  gxf3+ {[%clk 0:00:14]} 39. Kxh2 {[%clk 0:00:06]}  d4 {[%clk 0:00:15]} 40. Rc2 {[%clk 0:00:04]}  d3 {[%clk 0:00:14]} 41. Rd2 {[%clk 0:00:05]}  e5 {[%clk 0:00:15]} 42. Kg1 {[%clk 0:00:05]}  e4 {[%clk 0:00:15]} 43. Kf2 {[%clk 0:00:06]}  Ke5 {[%clk 0:00:14]} 44. Ke3 {[%clk 0:00:06]}  Rg8 {[%clk 0:00:14]} 45. Nc3 {[%clk 0:00:05]}  f5 {[%clk 0:00:14]} 46. Kf2 {[%clk 0:00:04]}  h4 {[%clk 0:00:14]} 47. gxh4 {[%clk 0:00:02]}  f4 {[%clk 0:00:13]} 48. Rd1 {[%clk 0:00:02]}  Rg2+ {[%clk 0:00:12]} 49. Kf1 {[%clk 0:00:02]}  Rxb2 {[%clk 0:00:13]} 50. h5 {[%clk 0:00:03]}  Rh2 {[%clk 0:00:13]} 51. h6 {[%clk 0:00:03]}  Rxh3 {[%clk 0:00:13]} 52. Nxe4 {[%clk 0:00:02]}  Kxe4 {[%clk 0:00:13]} 53. Kf2 {[%clk 0:00:02]}  Rh2+ {[%clk 0:00:13]} 54. Kg1 {[%clk 0:00:01]}  Rxh6 {[%clk 0:00:13]} 55. Re1+ {[%clk 0:00:02]}  Kd4 {[%clk 0:00:13]} 56. Kf2 {[%clk 0:00:03]}  Rh3 {[%clk 0:00:11]} 57. Rc1 {[%clk 0:00:02]}  d2 {[%clk 0:00:11]} 58. Rd1 {[%clk 0:00:00]}  Kd3 {[%clk 0:00:11]} 0-1


[Site "https://www.chess.com"]

[Event "Titled Tuesday Blitz August 1 Early 2023"]
[White "Pinero Rodriguez, Carlos Jose"]
[Black "Foerster-Yialamas, Lucas"]
[WhiteFideId "3901726"]
[BlackFideId "30901774"]
[WhiteElo "2547"]
[BlackElo "2375"]
[Result "0-1"]
[Round "4"]
[TimeControl "180+1"]
[Date "2023.08.01"]
[WhiteClock "0:00:32"]
[BlackClock "0:00:18"]
[Board "160"]

1. b3 {[%clk 0:03:00]}  e5 {[%clk 0:02:57]} 2. Bb2 {[%clk 0:02:53]}  Nc6 {[%clk 0:02:57]} 3. e3 {[%clk 0:02:52]}  g6 {[%clk 0:02:52]} 4. c4 {[%clk 0:02:51]}  Bg7 {[%clk 0:02:52]} 5. g3 {[%clk 0:02:51]}  Nge7 {[%clk 0:02:51]} 6. Bg2 {[%clk 0:02:51]}  d5 {[%clk 0:02:50]} 7. cxd5 {[%clk 0:02:50]}  Nxd5 {[%clk 0:02:51]} 8. a3 {[%clk 0:02:50]}  Be6 {[%clk 0:02:50]} 9. Ne2 {[%clk 0:02:46]}  O-O {[%clk 0:02:42]} 10. O-O {[%clk 0:02:43]}  Qd7 {[%clk 0:02:38]} 11. Nbc3 {[%clk 0:02:36]}  Rad8 {[%clk 0:02:31]} 12. Ne4 {[%clk 0:02:33]}  Qe7 {[%clk 0:02:19]} 13. Qc2 {[%clk 0:02:29]}  f5 {[%clk 0:02:14]} 14. Nc5 {[%clk 0:02:26]}  b6 {[%clk 0:01:46]} 15. Nxe6 {[%clk 0:02:25]}  Qxe6 {[%clk 0:01:47]} 16. Rac1 {[%clk 0:02:25]}  Nce7 {[%clk 0:01:45]} 17. b4 {[%clk 0:02:19]}  Rc8 {[%clk 0:01:42]} 18. Qa4 {[%clk 0:02:17]}  e4 {[%clk 0:01:31]} 19. Bxg7 {[%clk 0:02:16]}  Kxg7 {[%clk 0:01:32]} 20. Nd4 {[%clk 0:02:11]}  Qe5 {[%clk 0:01:06]} 21. Rc2 {[%clk 0:01:48]}  c5 {[%clk 0:01:01]} 22. bxc5 {[%clk 0:01:48]}  Rxc5 {[%clk 0:01:01]} 23. Rxc5 {[%clk 0:01:48]}  bxc5 {[%clk 0:01:02]} 24. Ne2 {[%clk 0:01:42]}  Qc7 {[%clk 0:00:59]} 25. Rc1 {[%clk 0:01:40]}  Rc8 {[%clk 0:00:54]} 26. f3 {[%clk 0:01:40]}  Nb6 {[%clk 0:00:51]} 27. Qb5 {[%clk 0:01:38]}  exf3 {[%clk 0:00:49]} 28. Bxf3 {[%clk 0:01:38]}  Qd7 {[%clk 0:00:48]} 29. Qb2+ {[%clk 0:01:37]}  Kh6 {[%clk 0:00:45]} 30. Nf4 {[%clk 0:01:32]}  Ned5 {[%clk 0:00:34]} 31. Nxd5 {[%clk 0:01:10]}  Nxd5 {[%clk 0:00:34]} 32. Qe5 {[%clk 0:01:10]}  Nb6 {[%clk 0:00:25]} 33. Rc2 {[%clk 0:00:39]}  c4 {[%clk 0:00:20]} 34. Qf4+ {[%clk 0:00:36]}  g5 {[%clk 0:00:19]} 35. Be2 {[%clk 0:00:32]}  gxf4 {[%clk 0:00:18]} 0-1


[Site "https://www.chess.com"]